Cogmind - Beta 16 --- EXPLORER MODE // 2026.01.20 @ 15:19:53 Player: K.K.Y. Result: Destroyed by Y-45 Defender with Beam Rifle Performance ------------- Evolutions (0) 0 Regions Visited (3) 600 Robots Destroyed (21) 105 Value Destroyed (487) 487 Prototype IDs (0) 0 Alien Tech Used (0) 0 Bonus (30) 30 TOTAL SCORE: 1222 Bonus ------- Follower Combat Kills 30 Cogmind --------- Core Integrity 0/250 Matter 300/300 Energy 160/160 System Corruption 0% Temperature Cool (9) Movement Rolling (95) Ox1 Location -10/Subcaves Parts ------- > --- POWER (1) -------- Light Nuclear Core > --- PROPULSION (2) --- Wheel Wheel > --- UTILITY (3) ------ Improved Heat Sink Large Storage Unit Structural Scanner > --- WEAPON (2) ------- Beam Cannon > --- INVENTORY (15) --- Light Angular Momentum Engine Light Treads Improved Heat Sink High-capacity Storage Unit Structural Scanner Improved Terrain Scanner Transport Network Coupler Medium Laser Beam Cannon Beam Cannon Light Cannon Mining Laser Peak State ------------ > --- POWER ------------ Light Nuclear Core > --- PROPULSION ------- Wheel Wheel > --- UTILITY ---------- Improved Heat Sink Large Storage Unit Structural Scanner > --- WEAPON ----------- Beam Cannon Mining Laser > --- INVENTORY -------- Light Treads High-capacity Storage Unit Structural Scanner Improved Terrain Scanner Transport Network Coupler Medium Laser Beam Cannon Beam Cannon Light Cannon [Rating: 13] Favorites ----------- Power Light Nuclear Core Engine Ion Engine Power Core Light Nuclear Core Propulsion Light Treads Treads Light Treads Wheel Wheel Utility Structural Scanner Device Structural Scanner Storage Large Storage Unit Weapon Beam Cannon Energy Gun Medium Laser Energy Cannon Beam Cannon Special Weapon Mining Laser Build | -11 -10 -10 -10 ------- Run | Yrd Mat Min Sub Slots Evolved 1 | . 1 . . Power . | . . . . Propulsion . | . . . . Utility 1 | . 1 . . Weapon . | . . . . Parts Attached 22 | 6 10 6 . Power 4 | 1 2 1 . Engine 3 | 1 2 . . Core 1 | . . 1 . Reactor . | . . . . Propulsion 6 | 2 2 2 . Treads 4 | 2 2 . . Leg . | . . . . Wheel 2 | . . 2 . Hover . | . . . . Flight . | . . . . Utility 7 | 2 5 . . Device 5 | 1 4 . . Storage 2 | 1 1 . . Processor . | . . . . Hackware . | . . . . Protection . | . . . . Artifact . | . . . . Weapon 5 | 1 1 3 . Energy Gun 2 | 1 1 . . Energy Cannon 2 | . . 2 . Ballistic Gun . | . . . . Ballistic Cannon . | . . . . Launcher . | . . . . Special Weapon 1 | . . 1 . Impact Weapon . | . . . . Slashing Weapon . | . . . . Piercing Weapon . | . . . . Special Melee Weapon . | . . . . Unidentified Prototypes . | . . . . Parts Lost 6 | . . 5 1 Power 1 | . . 1 . Propulsion 2 | . . 2 . Utility 1 | . . 1 . Weapon 2 | . . 1 1 Highest Loss Streak 2 | . . 2 1 To Critical Strikes . | . . . . Average Backups 7 | . 6 8 10 Power . | . . . . Propulsion . | . . . 1 Utility 3 | . 2 4 4 Weapon 3 | . 2 4 4 Tool/Special . | . . . . Unused Backups 10 | . . 2 8 Power 1 | . . . 1 Propulsion 3 | . . 2 1 Utility 4 | . . . 4 Weapon 2 | . . . 2 Tool/Special . | . . . . Average Slot Usage (%) 89 | . 94 85 90 Engine 7 | . 12 3 . Core 4 | . . 8 12 Treads 12 | . 24 1 . Wheel 6 | . . 11 25 Device 22 | . 23 21 25 Storage 12 | . 12 12 12 Energy Gun 10 | . 21 1 . Energy Cannon 10 | . . 20 15 Special Weapon 1 | . . 2 . Peak Build Rating 13 | 6 10 13 13 Average Rating 9 | 4 9 9 12 On Entrance 7 | . 6 10 13 Avg Prop Armor Cover (%) . | . . . . Naked Turns . | . . . . Heaviest Build 33 | 16 32 33 30 Greatest Support 40 | 40 40 40 20 Greatest Overweight (x) 10 | . 6 10 1 Average Overweight (x) 1 | . . 2 1 Largest Inventory Capacity 15 | 10 15 15 15 Average Capacity 13 | 9 12 15 15 Most Carried 12 | 4 11 11 12 Average Carried 7 | 1 6 8 10 Final Capacity 15 | 10 15 15 15 Final Carried 12 | 2 10 9 12 Class Distribution -------------------- 83% | Hacker-Mutant 16% | Scavenger-Mutant Dominant Class ---------------- Hacker-Mutant | -10/Materials Hacker-Mutant | -10/Mines Hacker-Mutant | -10/Subcaves Resources | -11 -10 -10 -10 ----------- Run | Yrd Mat Min Sub Matter Collected 512 | 260 140 107 5 Remotely . | . . . . Salvage Created 732 | 78 471 183 . Parts 34 | 8 25 1 . Haulers Intercepted 2 | . 2 . . Recyclers Shooed . | . . . . Parts Field Recycled . | . . . . Retrieved Matter . | . . . . Parts Self-Destructed . | . . . . Prevented . | . . . . Parts Restored . | . . . . Kills | -11 -10 -10 -10 ------- Run | Yrd Mat Min Sub Combat Hostiles Destroyed 23 | . 9 14 . Guns 9 | . 9 . . Cannons 12 | . . 12 . Classes Destroyed 9 | 2 5 2 . Builder 1 | . 1 . . Tunneler 2 | 2 . . . Hauler 2 | . 2 . . Recycler 1 | 1 . . . Watcher 3 | . 3 . . Swarmer 3 | . 2 1 . Grunt 7 | . 7 . . Demolisher 2 | . . 2 . Assembled 11 | . . 11 . Best Kill Streak 5 | 2 2 5 . Combat Bots Only 5 | . 2 5 . Max Kills in Single Turn 2 | 1 2 1 . Gunslinging 1 | . 1 . . Exploded . | . . . . Melee . | . . . . Uniques/NPCs Destroyed . | . . . . Combat | -11 -10 -10 -10 -------- Run | Yrd Mat Min Sub Hostile Shots Fired 117 | . 56 59 2 Missed 29 | . 19 9 1 Hits 88 | . 37 50 1 Melee 9 | . . 9 . Projectile 79 | . 37 41 1 AOE 17 | . . 16 1 Part Disruptions 3 | . . 3 . Damage Taken 1068 | . 257 754 57 Core 256 | . 49 181 26 Absorbed by Shields . | . . . . Ignored by Resistances 644 | . 170 442 32 Core Remaining (%) 100 | 100 . . . Volleys Fired 121 | 11 50 58 2 Largest 2 | 1 2 2 1 Hottest 160 | 50 115 160 60 Shots Fired 171 | 11 70 88 2 Gun 89 | 11 70 8 . Cannon 70 | . . 68 2 Launcher . | . . . . Special 12 | . . 12 . Kinetic . | . . . . Thermal 171 | 11 70 88 2 Explosive . | . . . . Electromagnetic . | . . . . Robot Hit Streak 21 | 5 21 10 4 Robot Miss Streak 3 | 1 2 3 . Penetration Max . | . . . . Secondary Targets 2 | . 2 . . Max Gunslinging Chain 1 | . 1 . . Shots Hit Robots 119 | 10 59 48 2 Core Hits 50 | 4 24 21 1 Critical Kills 2 | . . 2 . Critical Parts Destroyed . | . . . . Critical Strikes 7 | 1 4 2 . Burn 5 | 1 4 . . Meltdown 2 | . . 2 . Melee Attacks . | . . . . Impact . | . . . . Slashing . | . . . . Piercing . | . . . . Sneak Attacks . | . . . . Combat Hostiles . | . . . . Follow-up Attacks . | . . . . Damage Inflicted 1791 | 128 793 835 35 Guns 1018 | 128 793 97 . Cannons 773 | . . 738 35 Explosions . | . . . . Melee . | . . . . Ramming . | . . . . Kinetic . | . . . . Thermal 1791 | 128 793 835 35 Explosive . | . . . . Electromagnetic . | . . . . Impact . | . . . . Slashing . | . . . . Piercing . | . . . . Highest Corruption . | . . . . Average Corruption . | . . . . Corruption Purged . | . . . . Corruption Blocked . | . . . . Overload Shots . | . . . . Overflow Damage 36 | . . 36 . Projectiles 36 | . . 36 . Explosions . | . . . . Melee . | . . . . Knockbacks . | . . . . Impact . | . . . . Kinetic . | . . . . Secondary . | . . . . Self-Inflicted Damage . | . . . . Shots . | . . . . Rammed . | . . . . Targets Rammed . | . . . . Kicked . | . . . . Crushed . | . . . . Highest Temperature 495 | 50 495 384 . Average Temperature 111 | 21 124 110 . Received Heat Transfer 331 | . 222 100 9 Effects 4 | . 1 3 . Energy Bleed 2 | . 1 1 . Matter Decay 1 | . . 1 . Damage (minor) 1 | . . 1 . Siege Activations . | . . . . Martial Activations . | . . . . Shielding Activations . | . . . . Robots Disrupted . | . . . . Combat Hostiles . | . . . . Robots Corrupted . | . . . . Combat Hostiles . | . . . . Parts Fried . | . . . . Impact Corruptions . | . . . . Robots Melted 2 | . . 2 . Combat Hostiles 2 | . . 2 . Parts Melted 7 | 1 5 1 . Heat Transferred 4810 | 444 2479 1813 74 Parts Sabotaged . | . . . . Parts Stolen . | . . . . Parts Stripped . | . . . . Power Chain Reactions . | . . . . Alert | -11 -10 -10 -10 ------- Run | Yrd Mat Min Sub Maximum Alert Level . | . . . . Low Security (%) 100 | 100 100 100 . Level 1 . | . . . . Level 2 . | . . . . Level 3 . | . . . . Level 4 . | . . . . Level 5 . | . . . . High Security . | . . . . Max Security . | . . . . Peak Influence 50 | 10 50 50 . Initial 1 | . . 1 . Average 2 | . 4 1 . Influence Increases 368 | 15 282 71 . Destroy 0b10 Robot/C 240 | . 180 60 . Destroy 0b10 Robot/NC 45 | 15 30 . . Destroy Leader 60 | . 50 10 . Successful Hack 18 | . 18 . . Disable Machine 4 | . 4 . . Destroy Structure 1 | . . 1 . Influence Decreases 368 | 15 278 75 . Entered New Map 3 | . . 3 . Time Decay 360 | 15 278 67 . Lost Part 5 | . . 5 . Squads Dispatched 3 | . 3 . . Investigation 3 | . 3 . . Extermination . | . . . . Reinforcement . | . . . . Assault . | . . . . Garrison . | . . . . Intercept . | . . . . Searches Triggered . | . . . . Construction Impeded . | . . . . Haulers Reinforced . | . . . . Active Scanning Responses . | . . . . Cargo Convoy Interrupts . | . . . . Stealth | -11 -10 -10 -10 --------- Run | Yrd Mat Min Sub Distress Signals . | . . . . Communications Jammed . | . . . . Distress Signals . | . . . . Times Spotted 42 | . 15 23 4 Peak Tracking Total 9 | . 2 9 3 Tactical Retreats . | . . . . Traps | -11 -10 -10 -10 ------- Run | Yrd Mat Min Sub Traps Triggered 2 | . 2 . . Indirectly . | . . . . Trap Hack Attempts . | . . . . Triggered . | . . . . Disarmed . | . . . . Reprogrammed . | . . . . Reused . | . . . . Traps Extracted . | . . . . Installed . | . . . . Triggered . | . . . . Machines | -11 -10 -10 -10 ---------- Run | Yrd Mat Min Sub Machines Disabled 1 | . 1 . . Max in Single Turn 1 | . 1 . . Machines Repaired . | . . . . Machines Dismantled . | . . . . Machines Sabotaged . | . . . . Overloaded Fab Kills . | . . . . Hacking | -11 -10 -10 -10 --------- Run | Yrd Mat Min Sub Machines Accessed 10 | . 10 . . Terminals 8 | . 8 . . Fabricators . | . . . . Repair Stations . | . . . . Recycling Units 2 | . 2 . . Scanalyzers . | . . . . Garrison Access . | . . . . Total Hacks 26 | . 26 . . Successful 16 | . 16 . . Failed 10 | . 10 . . Catastrophic . | . . . . Database Lockouts . | . . . . Manual 23 | . 23 . . Terminals 24 | . 24 . . Fabricators . | . . . . Repair Stations . | . . . . Recycling Units 2 | . 2 . . Scanalyzers . | . . . . Garrison Access . | . . . . Terminal Hacks 10 | . 10 . . Part Schematic 9 | . 9 . . Robot Analysis 1 | . 1 . . Fabricator Hacks . | . . . . Repair Station Hacks . | . . . . Recycling Unit Hacks 2 | . 2 . . Retrieve Components 2 | . 2 . . Scanalyzer . | . . . . Garrison Access Hacks . | . . . . Unauthorized Hacks 4 | . 4 . . Terminals 4 | . 4 . . Botnet 4 | . 4 . . Fabricators . | . . . . Repair Stations . | . . . . Recycling Units . | . . . . Scanalyzers . | . . . . Garrison Access . | . . . . Data Cores Recovered . | . . . . Used . | . . . . Hacking Detections 8 | . 8 . . Full Trace Events 4 | . 4 . . Feedback Events . | . . . . Feedback Blocked . | . . . . Robot Schematics Acquired . | . . . . Robots Built . | . . . . Authchips . | . . . . Time . | . . . . Total Robot Build Rating . | . . . . Part Schematics Acquired 9 | . 9 . . Parts Built . | . . . . Authchips . | . . . . Time . | . . . . Total Part Build Rating . | . . . . Part Studies Acquired . | . . . . Parts Repaired . | . . . . Time . | . . . . Parts Recycled . | . . . . Recycled Matter . | . . . . Retrieved Matter . | . . . . Retrieved Components 7 | . 7 . . Parts Scanalyzed . | . . . . Part Schematics Acquired . | . . . . Parts Damaged . | . . . . Bothacking | -11 -10 -10 -10 ------------ Run | Yrd Mat Min Sub Used RIF Installer . | . . . . Robots Hacked . | . . . . Non-combat . | . . . . Combat . | . . . . Robot Hacks Applied . | . . . . Relay Couplers Released . | . . . . Fabnet Peak Effective % . | . . . . Robots Rewired . | . . . . Allies Hacked . | . . . . Hacks Repelled . | . . . . Allies | -11 -10 -10 -10 -------- Run | Yrd Mat Min Sub Total Allies 5 | . . 5 . Largest Group 5 | . . 5 4 Highest-Rated Group 86 | . . 86 78 Highest-Rated Ally 31 | . . 31 31 Total Orders . | . . . . Ally Attacks 5 | . . . 5 Total Damage 71 | . . . 71 Kills 1 | . . . 1 Allies Corrupted . | . . . . Allies Melted . | . . . . Intel | -11 -10 -10 -10 ------- Run | Yrd Mat Min Sub Active Infowar (turns) 3108 | 104 1417 1551 36 Sensors 2344 | 104 1389 851 . Structural 2769 | . 1182 1551 36 Robot Analysis Total 1 | . 1 . . Derelict Logs Recovered 2 | . . 2 . Drone Launches . | . . . . Drone Recoveries . | . . . . Exploration | -11 -10 -10 -10 ------------- Run | Yrd Mat Min Sub Turns Passed 3125 | 121 1417 1551 36 Spaces Moved 1592 | 61 756 751 24 Core 136 | 24 4 108 . Treads 843 | 37 752 54 . Legs . | . . . . Wheels 613 | . . 589 24 Hover . | . . . . Flight . | . . . . Fastest Speed 50 | 50 160 95 95 Average Speed 161 | 116 160 167 95 Slowest Speed 550 | 160 350 550 95 Overloaded Moves . | . . . . Propulsion Burnouts . | . . . . Robots Hopped . | . . . . Potential Cave-ins . | . . . . Cave-ins Triggered . | . . . . Exploration Rate (%) 50 | 4 99 97 3 Regions Visited 3 Branch Regions 2 Pre-discovered Areas 3 | . . 3 . Known Exits Taken 3 | 1 1 1 . Unknown Exits Taken . | . . . . Scrap Searched 3 | . . 3 . Spaces Dug . | . . . . Terrain Destroyed 1 | . . 1 . Melee . | . . . . Projectile 1 | . . 1 . AOE . | . . . . Terrain Rammed . | . . . . Walls Destroyed . | . . . . Machines Disabled . | . . . . Actions | -11 -10 -10 -10 --------- Run | Yrd Mat Min Sub Total 1950 | 100 886 929 35 Wait 166 | 15 40 106 5 Move 1589 | 60 755 750 24 Hop . | . . . . Pick Up 37 | 8 20 6 3 Fast Attach . | . . . . Attach 17 | 6 6 5 . Detach . | . . . . Swap 11 | . 8 2 1 Drop 9 | . 7 2 . Fire 121 | 11 50 58 2 Melee . | . . . . Ram . | . . . . Kick . | . . . . Crush . | . . . . Escape Stasis . | . . . . Rewire . | . . . . Trap . | . . . . Miscellaneous . | . . . . Route ------- -11/Scrapyard -10/Materials (discovered 4 exits: *Mat x3 / *Min) -10/Mines (discovered 3 exits: *Mat x2 / *Sub) -10/Subcaves History --------- Turn | Location | Event 8 | -11/Scrapyard | Identified exit to Materials 8 | -11/Scrapyard | Discovered exit to Materials (range 16) 122 | -11/Scrapyard | Entered Materials 122 | -10/Materials | Evolved 1 slot: Utility x1 306 | -10/Materials | Build established: Hacker-Mutant 437 | -10/Materials | Identified exit to Materials 437 | -10/Materials | Discovered exit to Materials (range 10) 783 | -10/Materials | Discovered exit to Materials (range 3) 961 | -10/Materials | Discovered exit to Materials (range 16) 1372 | -10/Materials | Identified exit to Mines 1372 | -10/Materials | Discovered exit to Mines (range 9) 1539 | -10/Materials | Entered Mines 1542 | -10/Mines | Assembled infested the area 1547 | -10/Mines | Assisted by a Guerilla fighting off Assembled 1616 | -10/Mines | Core integrity fell below 50% 1729 | -10/Mines | Core integrity fell below 20% 1976 | -10/Mines | Learned location of Zion (-6) 2418 | -10/Mines | Discovered exit to Materials (range 9) 2459 | -10/Mines | Learned location of Storage (-9) 2587 | -10/Mines | Assisted by bots powering up and referring to "LRC-V3" 2628 | -10/Mines | Discovered exit to Materials (range 15) 3047 | -10/Mines | Identified exit to Subcaves 3047 | -10/Mines | Discovered exit to Subcaves (range 4) 3090 | -10/Mines | Entered Subcaves 3090 | -10/Subcaves | Accompanied by 5 allies 3091 | -10/Subcaves | Approached by a straggling Scientist 3095 | -10/Subcaves | Led the pair of lost Derelicts to an unsafe place 3096 | -10/Subcaves | Ambushed by Subdweller buried in earth 3126 | -10/Subcaves | Destroyed by Y-45 Defender with Beam Rifle Last Messages --------------- back to the UFD." 03094_ Mercenary 1a destroyed. 03095_ NI-JBM(g): "This place looks worse than where we left..." 03096_ NI-JBM(g) destroyed. 03096_ Trooper 1a destroyed. 03096_ Beam Cannon destroyed. 03096_ RW-7NY(R) destroyed. 03097_ W5-9C0(R): "FREEEEDUMB!" 03098_ Trooper 1b destroyed. 03098_ W5-9C0(R) destroyed. 03098_ BB-Z1O(R) destroyed. 03102_ Subatomizers dissect the Lgt. Angular Momentum Engine. 03102_ Acquired Lgt. Angular Momentum Engine. 03105_ Acquired Beam Cannon. 03107_ Acquired 5 matter. 03109_ Acquired Imp. Heat Sink. 03115_ Subatomizers dissect the Particle Gun. Map ----- +----------------------------------------------------+ | ?????????????????????????????????????????????????? | | ?????????????????????????????????????????????????? | | ?????????????????????????????????????????????????? | | ?????????????????????????????????????????????????? | | ?????????????????????????????????????????????????? | | ?????????????????????????????????????????????????? | | ?????????????????????????????????????????????????? | | ?????????????????????????????????????????????????? | | ?????????????????????????????????????????????????? | | ?????????????????????????????????????????????????? | | ?????????????????????????????????????????????????? | | ?????????????????????????????????????????????????? | | ?????????????????????????????????????????????????? | | ?????????????????????????????????????????????????? | | ?????????????????????????????????????????????????? | | ?????????????????????????????????????????????????? | | ?????????????????????????????????????????????????? | | ?????????????????????????????????????????????????? | | ?????????????????????????#####???????????????????? | | ????????????????????????######???????????????????? | | ?????????????? ## ????### ##???????????????????? | | ??????????????##### ? #### ###??????????????????? | | ??????????????## ##### ###??????????????????? | | ??????????????## Y # # ##??????????????????? | | ?????????????### ########????????????? | | ????????????### @ ##########??????????? | | ???????????### # # ## #####?????????? | | ???????????## ??? ### ###?????????? | | ???????????## ??????? #### ##?????????? | | ???????????# ??? ???? ###; ##?????????? | | ?????????????????## ???### [% ##?????????? | | ?????????????????### ##" ##?????????? | | ??????????????????### ###?????????? | | ???????????????????### =*%= ###?????????? | | ???????????????????#### # &%& ##??????????? | | ????????????????????### #" & ##??????????? | | ????????????????????? ##??????????? | | ??????????????????? ######??????????? | | ?????????????????? ### "#######??????????? | | ??????????????????? ##### ####??????????????? | | ??????????????????? ###### ###???????????????? | | ????????????????????####?## ###????????????????? | | ?????????????????????????## ####????????????????? | | ?????????????????????????## ##??????????????????? | | ?????????????????????????## ????????????????????? | | ?????????????????????????# ????????????????????? | | ?????????????????????????? ?????????????????????? | | ?????????????????????????????????????????????????? | | ?????????????????????????????????????????????????? | | ?????????????????????????????????????????????????? | +----------------------------------------------------+ Best States ------------- Heat Dissipation 39 Energy Generation 14 Energy Capacity 250 Matter Stores 300 Matter Capacity 300 Sight Range 16 Robot Scan Range 14 Terrain Scan Density 10 Resistance: KI 35 Resistance: TH 35 Resistance: EX 35 Resistance: EM 35 Resistance: I 35 Resistance: S 35 Resistance: P 35 Evasion (%) 50 Recoil Reduction 2 Offensive Hacking 20 Item Schematics ----------------- Cargo Storage Unit | -10/Materials | Hacked Huge Storage Unit | -10/Materials | Hacked Hcp. Storage Unit | -10/Materials | Hacked Sml. Storage Unit | -10/Materials | Hacked Med. Storage Unit | -10/Materials | Hacked Lrg. Storage Unit | -10/Materials | Hacked Sensor Array | -10/Materials | Hacked Transport Network Coupler | -10/Materials | Hacked Structural Scanner | -10/Materials | Hacked Robot Schematics ------------------ None Fabricated ------------ Nothing Repaired ---------- Nothing Studied --------- None Alien Tech Used ----------------- None Achievements -------------- None Challenges ------------ None Game ------ Seed AnalysisDiametricPit Manual? 0 Play Time 00:14:58 Cumulative 295.5 hours Start 2026.01.20 @ 15:04:43 End 2026.01.20 @ 15:19:53 Sessions 1 Manual Loads 0 Difficulty Explorer Special Mode None Game No. 458 Rogue 0 Adventurer 0 Explorer 458 Win Type - Total 0 Types 0/0/0/0/0/0/0/0/0/0 Lore% 76 Gallery% 70 Achievement% 55 Wizard Run 0 Options --------- Layout 1 ASCII 0 Keyboard 0 Movement Mouse Keybinds 1 Fullscreen 1 Font 24/Smallcaps Map View 50x35 Zoom Use 0% Tactical HUD 1 Map Filters NONE Filters NONE Steam 1 RUN: e5578593-d560-4ef0-ae6a-1f82c7adcebd